[Event "*** Titled Tuesday Blitz"]
[Site "Chess.com"]
[Date "2020.04.07"]
[Round "6"]
[White "SGchess01"]
[Black "nabukatnezarr"]
[Result "0-1"]
[WhiteElo "2782"]
[BlackElo "2564"]
[TimeControl "180+1"]
[EndTime "14:06:46 PDT"]
[Termination "nabukatnezarr won on time"]

1. d4 {[%clk 0:02:59.8]} 1... Nf6 {[%clk 0:02:59.7]} 2. c4 {[%clk 0:02:59]} 2...
e6 {[%clk 0:03:00.2]} 3. Nc3 {[%clk 0:02:59.2]} 3... Bb4 {[%clk 0:03:00.3]} 4.
e3 {[%clk 0:02:56.9]} 4... c5 {[%clk 0:02:58.2]} 5. Bd3 {[%clk 0:02:49.5]} 5...
Nc6 {[%clk 0:02:53.1]} 6. Nf3 {[%clk 0:02:47.6]} 6... d5 {[%clk 0:02:47.3]} 7.
O-O {[%clk 0:02:46.9]} 7... dxc4 {[%clk 0:02:45.4]} 8. Bxc4 {[%clk 0:02:47]}
8... O-O {[%clk 0:02:45.9]} 9. a3 {[%clk 0:02:44]} 9... Ba5 {[%clk 0:02:46]} 10.
h3 {[%clk 0:02:36.8]} 10... Qc7 {[%clk 0:02:38.4]} 11. Nb5 {[%clk 0:02:31.6]}
11... Qe7 {[%clk 0:02:37.4]} 12. dxc5 {[%clk 0:02:24]} 12... Qxc5 {[%clk
0:02:36.1]} 13. Qe2 {[%clk 0:02:24]} 13... Qe7 {[%clk 0:02:29.7]} 14. b4 {[%clk
0:02:23.4]} 14... Bb6 {[%clk 0:02:29]} 15. Bb2 {[%clk 0:02:23.2]} 15... a6
{[%clk 0:02:28.7]} 16. Nc3 {[%clk 0:02:16.2]} 16... e5 {[%clk 0:02:24.1]} 17.
Nd5 {[%clk 0:02:13.2]} 17... Nxd5 {[%clk 0:02:23.6]} 18. Bxd5 {[%clk 0:02:14.1]}
18... e4 {[%clk 0:02:17.7]} 19. Nd2 {[%clk 0:02:12.1]} 19... Bf5 {[%clk
0:02:16.1]} 20. Rad1 {[%clk 0:01:31]} 20... Bc7 {[%clk 0:02:09.5]} 21. Nc4
{[%clk 0:01:18.2]} 21... Rad8 {[%clk 0:01:59.6]} 22. f4 {[%clk 0:01:15.2]} 22...
exf3 {[%clk 0:01:54.6]} 23. Qxf3 {[%clk 0:01:14.1]} 23... Bg6 {[%clk 0:01:52.1]}
24. e4 {[%clk 0:01:00.4]} 24... Bb8 {[%clk 0:01:44.9]} 25. Rd2 {[%clk 0:00:47]}
25... Qc7 {[%clk 0:01:35.5]} 26. e5 {[%clk 0:00:46.7]} 26... Qe7 {[%clk
0:01:27.3]} 27. Re2 {[%clk 0:00:42.4]} 27... Rxd5 {[%clk 0:01:19.8]} 28. Qxd5
{[%clk 0:00:41.4]} 28... Rd8 {[%clk 0:01:20.7]} 29. Qf3 {[%clk 0:00:19.4]} 29...
Bd3 {[%clk 0:01:17.3]} 30. Nd6 {[%clk 0:00:03.9]} 30... Bxe2 {[%clk 0:01:00]}
0-1

[Event "*** Titled Tuesday Blitz"]
[Site "Chess.com"]
[Date "2020.04.07"]
[Round "6"]
[White "Training_Day"]
[Black "chabo96"]
[Result "0-1"]
[WhiteElo "2337"]
[BlackElo "2613"]
[TimeControl "180+1"]
[EndTime "14:06:46 PDT"]
[Termination "chabo96 won by resignation"]

1. e4 {[%clk 0:03:00.9]} 1... e6 {[%clk 0:02:57.3]} 2. d4 {[%clk 0:03:00.4]}
2... d5 {[%clk 0:02:57.1]} 3. e5 {[%clk 0:03:01]} 3... c5 {[%clk 0:02:56.9]} 4.
c3 {[%clk 0:03:01.6]} 4... Nc6 {[%clk 0:02:57.3]} 5. Nf3 {[%clk 0:03:01.9]} 5...
Bd7 {[%clk 0:02:57.8]} 6. Be2 {[%clk 0:03:01.3]} 6... Nge7 {[%clk 0:02:57.5]} 7.
O-O {[%clk 0:02:59.8]} 7... Ng6 {[%clk 0:02:57.6]} 8. g3 {[%clk 0:02:52.2]} 8...
Be7 {[%clk 0:02:57]} 9. h4 {[%clk 0:02:50.1]} 9... O-O {[%clk 0:02:54.9]} 10. h5
{[%clk 0:02:47.5]} 10... Nh8 {[%clk 0:02:54.9]} 11. h6 {[%clk 0:02:33.2]} 11...
g6 {[%clk 0:02:53.9]} 12. Re1 {[%clk 0:02:33]} 12... b6 {[%clk 0:02:34.2]} 13.
Be3 {[%clk 0:02:21.3]} 13... f6 {[%clk 0:02:28.7]} 14. exf6 {[%clk 0:02:16.7]}
14... Rxf6 {[%clk 0:02:26.2]} 15. Bg5 {[%clk 0:02:11.5]} 15... Rxf3 {[%clk
0:02:21.9]} 16. Bxe7 {[%clk 0:02:10.1]} 16... Rxg3+ {[%clk 0:02:22.3]} 17. fxg3
{[%clk 0:02:10.5]} 17... Qxe7 {[%clk 0:02:22.8]} 18. Qd2 {[%clk 0:01:59.1]}
18... Rf8 {[%clk 0:02:15]} 19. Na3 {[%clk 0:01:54.9]} 19... Qd6 {[%clk
0:02:10.1]} 20. Kg2 {[%clk 0:01:47]} 20... Nf7 {[%clk 0:02:09.1]} 21. Rf1 {[%clk
0:01:44.2]} 21... Ne7 {[%clk 0:02:06.1]} 22. Nb5 {[%clk 0:01:30.4]} 22... Bxb5
{[%clk 0:02:02.6]} 23. Bxb5 {[%clk 0:01:29.7]} 23... Nf5 {[%clk 0:02:03.2]} 24.
Qf4 {[%clk 0:01:25.9]} 24... Qxf4 {[%clk 0:01:54.7]} 25. Rxf4 {[%clk 0:01:24.6]}
25... N7xh6 {[%clk 0:01:55.3]} 26. Re1 {[%clk 0:01:19.8]} 26... Rf6 {[%clk
0:01:44.7]} 27. Bd7 {[%clk 0:01:10.9]} 27... Kf7 {[%clk 0:01:42.8]} 28. g4
{[%clk 0:01:05.4]} 28... Nh4+ {[%clk 0:01:40]} 29. Kg3 {[%clk 0:01:04.9]} 29...
Rxf4 {[%clk 0:01:40.5]} 30. Bxe6+ {[%clk 0:00:52.7]} 30... Kf6 {[%clk
0:01:20.8]} 31. Kxh4 {[%clk 0:00:25.2]} 31... Nf5+ {[%clk 0:01:20.1]} 32. Kh3
{[%clk 0:00:18.3]} 32... Rf3+ {[%clk 0:01:20]} 33. Kh2 {[%clk 0:00:17.7]} 33...
Ne3 {[%clk 0:01:10.3]} 34. g5+ {[%clk 0:00:03.6]} 34... Kxe6 {[%clk 0:01:07.6]}
0-1

[Event "*** Titled Tuesday Blitz"]
[Site "Chess.com"]
[Date "2020.04.07"]
[Round "6"]
[White "TomasKapitanchuk"]
[Black "mathapples"]
[Result "0-1"]
[WhiteElo "2476"]
[BlackElo "2335"]
[TimeControl "180+1"]
[EndTime "14:06:46 PDT"]
[Termination "mathapples won by resignation"]

1. e4 {[%clk 0:03:00.9]} 1... c6 {[%clk 0:02:59.7]} 2. d4 {[%clk 0:03:00.7]}
2... d5 {[%clk 0:02:59.6]} 3. exd5 {[%clk 0:03:01.6]} 3... cxd5 {[%clk
0:02:59.4]} 4. Bd3 {[%clk 0:03:02]} 4... Nc6 {[%clk 0:02:59.3]} 5. c3 {[%clk
0:03:02.4]} 5... Nf6 {[%clk 0:02:59.5]} 6. Bf4 {[%clk 0:03:00.5]} 6... Bg4
{[%clk 0:02:59.1]} 7. Qb3 {[%clk 0:02:59.1]} 7... Qd7 {[%clk 0:02:59.1]} 8. Nd2
{[%clk 0:02:57.3]} 8... e6 {[%clk 0:02:59.2]} 9. Ngf3 {[%clk 0:02:55.8]} 9...
Bxf3 {[%clk 0:02:59.6]} 10. Nxf3 {[%clk 0:02:56.7]} 10... Bd6 {[%clk 0:03:00.1]}
11. Bxd6 {[%clk 0:02:54.3]} 11... Qxd6 {[%clk 0:03:00.5]} 12. O-O {[%clk
0:02:54.1]} 12... O-O {[%clk 0:03:00.6]} 13. Rfe1 {[%clk 0:02:52]} 13... Rab8
{[%clk 0:03:00]} 14. Ne5 {[%clk 0:02:51.1]} 14... b5 {[%clk 0:02:58.6]} 15. Re3
{[%clk 0:02:43.5]} 15... b4 {[%clk 0:02:25.6]} 16. Qc2 {[%clk 0:02:36.6]} 16...
bxc3 {[%clk 0:02:24.3]} 17. bxc3 {[%clk 0:02:37.5]} 17... h6 {[%clk 0:02:22.4]}
18. Rae1 {[%clk 0:02:28.1]} 18... Rfc8 {[%clk 0:02:17.4]} 19. Qd2 {[%clk
0:02:24.7]} 19... Qa3 {[%clk 0:02:13.5]} 20. Rg3 {[%clk 0:02:20.7]} 20... Kf8
{[%clk 0:02:01.4]} 21. Bb1 {[%clk 0:01:25.4]} 21... Nxe5 {[%clk 0:01:54.8]} 22.
dxe5 {[%clk 0:01:22.6]} 22... Rxb1 {[%clk 0:01:54.3]} 23. exf6 {[%clk
0:01:10.8]} 23... Qb2 {[%clk 0:01:33.4]} 24. fxg7+ {[%clk 0:01:09.4]} 24... Kg8
{[%clk 0:01:32.5]} 25. Qe3 {[%clk 0:00:51.9]} 25... d4 {[%clk 0:01:18]} 26. Qe4
{[%clk 0:00:34.8]} 26... Rxe1+ {[%clk 0:01:11.9]} 27. Qxe1 {[%clk 0:00:34.2]}
27... dxc3 {[%clk 0:01:12]} 28. h3 {[%clk 0:00:19.1]} 28... c2 {[%clk
0:01:11.5]} 29. Qe4 {[%clk 0:00:15.3]} 29... c1=Q+ {[%clk 0:01:10.3]} 30. Kh2
{[%clk 0:00:16.2]} 30... Qxf2 {[%clk 0:01:08.7]} 0-1

[Event "*** Titled Tuesday Blitz"]
[Site "Chess.com"]
[Date "2020.04.07"]
[Round "6"]
[White "hamelekh"]
[Black "Colombiano07"]
[Result "1-0"]
[WhiteElo "2781"]
[BlackElo "2240"]
[TimeControl "180+1"]
[EndTime "14:06:47 PDT"]
[Termination "hamelekh won on time"]

1. e4 {[%clk 0:02:59.5]} 1... c5 {[%clk 0:03:00.1]} 2. Nc3 {[%clk 0:02:59.3]}
2... g6 {[%clk 0:02:59.8]} 3. Nf3 {[%clk 0:02:58]} 3... Bg7 {[%clk 0:02:58.1]}
4. d4 {[%clk 0:02:58.4]} 4... cxd4 {[%clk 0:02:59]} 5. Nxd4 {[%clk 0:02:59.3]}
5... Nc6 {[%clk 0:02:59.7]} 6. Be3 {[%clk 0:02:59.9]} 6... Nf6 {[%clk 0:03:00]}
7. Bc4 {[%clk 0:02:58.9]} 7... O-O {[%clk 0:03:00]} 8. Bb3 {[%clk 0:02:59.3]}
8... a5 {[%clk 0:02:59.7]} 9. a3 {[%clk 0:02:58.8]} 9... Ng4 {[%clk 0:02:58.8]}
10. Qxg4 {[%clk 0:02:56.7]} 10... Nxd4 {[%clk 0:02:58.9]} 11. O-O-O {[%clk
0:02:55.1]} 11... Nxb3+ {[%clk 0:02:47.6]} 12. cxb3 {[%clk 0:02:56]} 12... d5
{[%clk 0:02:32.1]} 13. Qg3 {[%clk 0:02:55.2]} 13... d4 {[%clk 0:02:32]} 14. e5
{[%clk 0:02:55.5]} 14... Qc7 {[%clk 0:02:08.2]} 15. Bxd4 {[%clk 0:02:52.1]}
15... Bf5 {[%clk 0:01:51.2]} 16. Qe3 {[%clk 0:02:47.9]} 16... b5 {[%clk
0:01:47.8]} 17. Kd2 {[%clk 0:02:47.2]} 17... b4 {[%clk 0:01:40.7]} 18. Nd5
{[%clk 0:02:47]} 18... Qc2+ {[%clk 0:01:39.7]} 19. Ke1 {[%clk 0:02:47.2]} 19...
Rfe8 {[%clk 0:01:01.7]} 20. Rc1 {[%clk 0:02:43]} 20... Qe4 {[%clk 0:00:53.6]}
21. Nc7 {[%clk 0:02:39]} 21... Qxg2 {[%clk 0:00:50.5]} 22. Kd2 {[%clk
0:02:31.9]} 22... Rad8 {[%clk 0:00:39.2]} 23. Nxe8 {[%clk 0:02:31.6]} 23... Rxe8
{[%clk 0:00:40.1]} 24. Rhg1 {[%clk 0:02:27.5]} 24... Qd5 {[%clk 0:00:39.2]} 25.
Rc5 {[%clk 0:02:27.1]} 25... Qe6 {[%clk 0:00:31]} 26. Rgc1 {[%clk 0:02:23.9]}
26... Rd8 {[%clk 0:00:26.8]} 27. Ke1 {[%clk 0:02:24.3]} 27... h5 {[%clk
0:00:23.3]} 28. Rxa5 {[%clk 0:02:22.2]} 28... Kh7 {[%clk 0:00:18.3]} 29. axb4
{[%clk 0:02:21.9]} 29... Bh6 {[%clk 0:00:18.3]} 30. f4 {[%clk 0:02:20.5]} 30...
h4 {[%clk 0:00:11.4]} 31. Ra8 {[%clk 0:02:19.6]} 31... Rxa8 {[%clk 0:00:10]} 32.
b5 {[%clk 0:02:19.3]} 32... Rd8 {[%clk 0:00:09.4]} 33. b6 {[%clk 0:02:19.3]}
33... Qd5 {[%clk 0:00:09.5]} 34. Rc4 {[%clk 0:02:18.8]} 34... Qh1+ {[%clk
0:00:06.1]} 35. Kd2 {[%clk 0:02:18.7]} 35... Qxh2+ {[%clk 0:00:06.5]} 36. Kc3
{[%clk 0:02:19.3]} 36... Qxf4 {[%clk 0:00:06.3]} 37. Qxf4 {[%clk 0:02:11.4]}
37... Bxf4 {[%clk 0:00:07.2]} 38. Kb4 {[%clk 0:02:10.7]} 38... Be4 {[%clk
0:00:06.7]} 39. Bc3 {[%clk 0:02:10.5]} 39... f5 {[%clk 0:00:03.5]} 40. exf6
{[%clk 0:02:10.5]} 40... exf6 {[%clk 0:00:04]} 41. Rxe4 {[%clk 0:02:10.2]} 41...
Be5 {[%clk 0:00:03.4]} 42. Bxe5 {[%clk 0:02:04.3]} 42... fxe5 {[%clk 0:00:04.3]}
43. Rxh4+ {[%clk 0:02:04.7]} 43... Kg7 {[%clk 0:00:04.4]} 44. Rc4 {[%clk
0:02:04.6]} 44... Kf6 {[%clk 0:00:04.3]} 45. Kb5 {[%clk 0:02:05]} 45... g5
{[%clk 0:00:04.2]} 46. b7 {[%clk 0:02:05.5]} 46... Kf5 {[%clk 0:00:04]} 47. Rc8
{[%clk 0:02:05.2]} 47... Rd5+ {[%clk 0:00:01.9]} 48. Kc4 {[%clk 0:02:05]} 1-0

[Event "*** Titled Tuesday Blitz"]
[Site "Chess.com"]
[Date "2020.04.07"]
[Round "6"]
[White "GMKrikor"]
[Black "INLOVEWITHF"]
[Result "0-1"]
[WhiteElo "2777"]
[BlackElo "2560"]
[TimeControl "180+1"]
[EndTime "14:06:49 PDT"]
[Termination "INLOVEWITHF won by resignation"]

1. e4 {[%clk 0:03:00.9]} 1... e5 {[%clk 0:02:59]} 2. Nf3 {[%clk 0:02:59.5]} 2...
Nc6 {[%clk 0:02:58.5]} 3. Bc4 {[%clk 0:02:58.6]} 3... Nf6 {[%clk 0:02:57.8]} 4.
d3 {[%clk 0:02:56.8]} 4... h6 {[%clk 0:02:52.9]} 5. O-O {[%clk 0:02:53.8]} 5...
d6 {[%clk 0:02:52.2]} 6. c3 {[%clk 0:02:51.5]} 6... g5 {[%clk 0:02:51.2]} 7. Re1
{[%clk 0:02:39.2]} 7... g4 {[%clk 0:02:47.2]} 8. Nfd2 {[%clk 0:02:37.9]} 8... h5
{[%clk 0:02:45.1]} 9. Nf1 {[%clk 0:02:36.6]} 9... h4 {[%clk 0:02:42.5]} 10. d4
{[%clk 0:02:18.4]} 10... Bg7 {[%clk 0:02:38.8]} 11. Na3 {[%clk 0:02:02.6]} 11...
Bd7 {[%clk 0:02:25.7]} 12. Bb3 {[%clk 0:01:51.4]} 12... Nh5 {[%clk 0:02:12.3]}
13. Ne3 {[%clk 0:01:40.4]} 13... g3 {[%clk 0:02:05.8]} 14. Nf5 {[%clk
0:01:29.2]} 14... exd4 {[%clk 0:01:57.6]} 15. cxd4 {[%clk 0:00:57.7]} 15... Qf6
{[%clk 0:01:47.7]} 16. Nb5 {[%clk 0:00:50.6]} 16... O-O-O {[%clk 0:01:40.2]} 17.
Be3 {[%clk 0:00:39.7]} 17... Bxf5 {[%clk 0:01:30.8]} 18. exf5 {[%clk 0:00:39.6]}
18... Qxf5 {[%clk 0:01:30.7]} 19. d5 {[%clk 0:00:35.2]} 19... gxh2+ {[%clk
0:01:29.8]} 20. Kh1 {[%clk 0:00:30.7]} 20... Ne5 {[%clk 0:01:14.4]} 21. Rc1
{[%clk 0:00:30.5]} 21... h3 {[%clk 0:01:08.1]} 22. Rxc7+ {[%clk 0:00:14.1]}
22... Kb8 {[%clk 0:01:08.5]} 23. Bxa7+ {[%clk 0:00:14.3]} 23... Ka8 {[%clk
0:01:08.7]} 24. g3 {[%clk 0:00:12.9]} 24... Nd3 {[%clk 0:00:58.2]} 25. Bc2
{[%clk 0:00:05.4]} 25... Nxg3+ {[%clk 0:00:51.9]} 26. fxg3 {[%clk 0:00:03.9]}
26... Qxd5+ {[%clk 0:00:51.5]} 0-1

[Event "*** Titled Tuesday Blitz"]
[Site "Chess.com"]
[Date "2020.04.07"]
[Round "6"]
[White "Mazetovic"]
[Black "eightbyeightchess"]
[Result "1-0"]
[WhiteElo "2598"]
[BlackElo "2350"]
[TimeControl "180+1"]
[EndTime "14:06:49 PDT"]
[Termination "Mazetovic won by resignation"]

1. d4 {[%clk 0:03:00.9]} 1... d5 {[%clk 0:02:43.1]} 2. Nf3 {[%clk 0:02:44]} 2...
Nf6 {[%clk 0:02:34.5]} 3. Bf4 {[%clk 0:02:33.7]} 3... c5 {[%clk 0:02:29.9]} 4.
e3 {[%clk 0:02:24.7]} 4... Nc6 {[%clk 0:02:24.3]} 5. Nbd2 {[%clk 0:01:57.1]}
5... Bg4 {[%clk 0:02:23.4]} 6. c3 {[%clk 0:01:38.1]} 6... e6 {[%clk 0:02:10.4]}
7. Bb5 {[%clk 0:01:28.9]} 7... Bd6 {[%clk 0:02:04.8]} 8. Bxc6+ {[%clk
0:01:21.7]} 8... bxc6 {[%clk 0:02:02]} 9. Bxd6 {[%clk 0:01:22.6]} 9... Qxd6
{[%clk 0:02:02.1]} 10. Qa4 {[%clk 0:01:23.3]} 10... O-O {[%clk 0:02:01]} 11. Qa3
{[%clk 0:01:21.9]} 11... Nd7 {[%clk 0:01:57.9]} 12. Nb3 {[%clk 0:01:02.8]} 12...
Bxf3 {[%clk 0:01:53.3]} 13. gxf3 {[%clk 0:00:51.2]} 13... e5 {[%clk 0:01:52.9]}
14. Nxc5 {[%clk 0:00:40.2]} 14... Nxc5 {[%clk 0:01:52.3]} 15. Qxc5 {[%clk
0:00:39.9]} 15... Qf6 {[%clk 0:01:52.8]} 16. dxe5 {[%clk 0:00:36.6]} 16... Qxf3
{[%clk 0:01:51.1]} 17. Rg1 {[%clk 0:00:36.9]} 17... Rab8 {[%clk 0:01:47.2]} 18.
b3 {[%clk 0:00:28.7]} 18... f6 {[%clk 0:01:41.5]} 19. e6 {[%clk 0:00:16.8]}
19... Rfe8 {[%clk 0:01:36.2]} 20. Rd1 {[%clk 0:00:12.4]} 20... Rxe6 {[%clk
0:01:34.7]} 21. Rg3 {[%clk 0:00:12.6]} 21... Rb5 {[%clk 0:01:07.8]} 22. Qxa7
{[%clk 0:00:07.5]} 22... Rxe3+ {[%clk 0:00:46.8]} 23. Qxe3 {[%clk 0:00:06]}
23... Qe4 {[%clk 0:00:44.8]} 24. Qxe4 {[%clk 0:00:06.1]} 24... dxe4 {[%clk
0:00:45.7]} 25. Rd7 {[%clk 0:00:06.8]} 25... Rg5 {[%clk 0:00:44.8]} 26. Rxg5
{[%clk 0:00:06.9]} 26... fxg5 {[%clk 0:00:45.7]} 27. a4 {[%clk 0:00:07.4]} 27...
h5 {[%clk 0:00:46.4]} 28. a5 {[%clk 0:00:07.8]} 28... e3 {[%clk 0:00:47.3]} 29.
a6 {[%clk 0:00:08]} 29... exf2+ {[%clk 0:00:48.2]} 30. Kxf2 {[%clk 0:00:08.5]}
1-0

[Event "*** Titled Tuesday Blitz"]
[Site "Chess.com"]
[Date "2020.04.07"]
[Round "6"]
[White "Bajecny"]
[Black "Witik"]
[Result "0-1"]
[WhiteElo "2286"]
[BlackElo "2712"]
[TimeControl "180+1"]
[EndTime "14:06:53 PDT"]
[Termination "Witik won by resignation"]

1. d4 {[%clk 0:03:00]} 1... d5 {[%clk 0:02:59.1]} 2. c4 {[%clk 0:02:59.9]} 2...
e6 {[%clk 0:02:59.4]} 3. Nf3 {[%clk 0:03:00.3]} 3... c6 {[%clk 0:02:59.7]} 4.
Nc3 {[%clk 0:03:00.7]} 4... dxc4 {[%clk 0:02:58.8]} 5. e4 {[%clk 0:03:01.2]}
5... b5 {[%clk 0:02:58.3]} 6. Be2 {[%clk 0:03:01.7]} 6... Nf6 {[%clk 0:02:55.9]}
7. e5 {[%clk 0:03:01.3]} 7... Nd5 {[%clk 0:02:55.5]} 8. Ne4 {[%clk 0:03:01.8]}
8... h6 {[%clk 0:02:37.4]} 9. O-O {[%clk 0:03:01.4]} 9... Nd7 {[%clk 0:02:37.2]}
10. b3 {[%clk 0:03:01.5]} 10... c3 {[%clk 0:02:30.8]} 11. a4 {[%clk 0:03:00.3]}
11... b4 {[%clk 0:02:29.7]} 12. Bd3 {[%clk 0:02:52.6]} 12... Be7 {[%clk
0:02:23.1]} 13. Qe2 {[%clk 0:02:51.2]} 13... a5 {[%clk 0:02:22.1]} 14. Ne1
{[%clk 0:02:47.5]} 14... Qb6 {[%clk 0:02:21.4]} 15. Be3 {[%clk 0:02:38.5]} 15...
Ba6 {[%clk 0:02:10.4]} 16. f4 {[%clk 0:02:35.2]} 16... O-O {[%clk 0:01:57.6]}
17. f5 {[%clk 0:02:35]} 17... Nxe3 {[%clk 0:01:37.6]} 18. Qxe3 {[%clk
0:02:34.9]} 18... Nxe5 {[%clk 0:01:18.5]} 19. Bxa6 {[%clk 0:02:34.6]} 19... Rxa6
{[%clk 0:01:01.3]} 20. f6 {[%clk 0:02:34.5]} 20... Ng4 {[%clk 0:00:59.7]} 21.
Qd3 {[%clk 0:02:21.7]} 21... Nxf6 {[%clk 0:00:49.1]} 22. Nxf6+ {[%clk
0:02:21.8]} 22... Bxf6 {[%clk 0:00:49.2]} 23. Rxf6 {[%clk 0:02:22.4]} 23... gxf6
{[%clk 0:00:49.2]} 24. Qg3+ {[%clk 0:02:23]} 24... Kh7 {[%clk 0:00:45.8]} 25.
Nf3 {[%clk 0:02:15.5]} 25... Ra7 {[%clk 0:00:24.3]} 26. Qh4 {[%clk 0:02:15.4]}
26... Qd8 {[%clk 0:00:20.7]} 27. Rf1 {[%clk 0:01:54.8]} 27... f5 {[%clk
0:00:18.9]} 28. Qh5 {[%clk 0:01:52.4]} 28... Qf6 {[%clk 0:00:16.2]} 29. Ne5
{[%clk 0:01:48.6]} 29... Rg8 {[%clk 0:00:16.6]} 30. Qf3 {[%clk 0:01:48.3]} 30...
c5 {[%clk 0:00:15.4]} 31. Nc6 {[%clk 0:01:44.9]} 31... Rc7 {[%clk 0:00:15.5]}
32. dxc5 {[%clk 0:01:44.7]} 32... Rgc8 {[%clk 0:00:13.4]} 33. Nxa5 {[%clk
0:01:43.1]} 33... Rxc5 {[%clk 0:00:13.5]} 34. Nc4 {[%clk 0:01:43.4]} 34... Rxc4
{[%clk 0:00:13.3]} 35. bxc4 {[%clk 0:01:44.3]} 35... b3 {[%clk 0:00:13.6]} 36.
Qb7 {[%clk 0:01:35.5]} 36... Rxc4 {[%clk 0:00:10.4]} 37. Qxb3 {[%clk 0:01:35.4]}
37... Qd4+ {[%clk 0:00:11.3]} 38. Kh1 {[%clk 0:01:35.3]} 38... c2 {[%clk
0:00:11.9]} 39. Rc1 {[%clk 0:01:32.4]} 39... Rc3 {[%clk 0:00:10.4]} 0-1

[Event "*** Titled Tuesday Blitz"]
[Site "Chess.com"]
[Date "2020.04.07"]
[Round "6"]
[White "willc-h99"]
[Black "JesseFebruary"]
[Result "1-0"]
[WhiteElo "2249"]
[BlackElo "1759"]
[TimeControl "180+1"]
[EndTime "14:06:53 PDT"]
[Termination "willc-h99 won on time"]

1. c4 {[%clk 0:03:00.2]} 1... e5 {[%clk 0:02:56.7]} 2. g3 {[%clk 0:03:00.1]}
2... Nf6 {[%clk 0:02:50.3]} 3. Bg2 {[%clk 0:02:58.3]} 3... d5 {[%clk 0:02:49.7]}
4. cxd5 {[%clk 0:02:59.2]} 4... Nxd5 {[%clk 0:02:49.1]} 5. Nc3 {[%clk
0:02:59.6]} 5... Nb6 {[%clk 0:02:48.7]} 6. d3 {[%clk 0:02:59.9]} 6... Nc6 {[%clk
0:02:48.1]} 7. Bxc6+ {[%clk 0:02:58.3]} 7... bxc6 {[%clk 0:02:46.3]} 8. Nf3
{[%clk 0:02:59.2]} 8... Bd6 {[%clk 0:02:41.7]} 9. O-O {[%clk 0:02:52.9]} 9...
O-O {[%clk 0:02:41.2]} 10. Be3 {[%clk 0:02:45.3]} 10... h6 {[%clk 0:02:40.1]}
11. Rc1 {[%clk 0:02:41.1]} 11... Bh3 {[%clk 0:02:38.1]} 12. Re1 {[%clk
0:02:40.4]} 12... Nd5 {[%clk 0:02:36.8]} 13. Bd2 {[%clk 0:02:34.5]} 13... Rb8
{[%clk 0:01:42.4]} 14. Na4 {[%clk 0:02:16.6]} 14... Qd7 {[%clk 0:01:26.1]} 15.
Qc2 {[%clk 0:02:03.6]} 15... Nb4 {[%clk 0:01:13.5]} 16. Qb1 {[%clk 0:01:47.9]}
16... Rfe8 {[%clk 0:00:45.4]} 17. a3 {[%clk 0:01:45.6]} 17... Nd5 {[%clk
0:00:43]} 18. Nc5 {[%clk 0:01:40.4]} 18... Bxc5 {[%clk 0:00:42.1]} 19. Rxc5
{[%clk 0:01:41.3]} 19... Rb5 {[%clk 0:00:26.2]} 20. Rec1 {[%clk 0:01:40]} 20...
Reb8 {[%clk 0:00:22.5]} 21. b4 {[%clk 0:01:37.3]} 21... a5 {[%clk 0:00:18.9]}
22. Nxe5 {[%clk 0:01:36.5]} 22... Qf5 {[%clk 0:00:15.5]} 23. Nxc6 {[%clk
0:01:30.9]} 23... Qg4 {[%clk 0:00:12.7]} 24. Rxd5 {[%clk 0:01:24]} 24... Rxd5
{[%clk 0:00:09.4]} 25. Ne7+ {[%clk 0:01:23.5]} 25... Kh8 {[%clk 0:00:06.6]} 26.
Nxd5 {[%clk 0:01:24.4]} 26... Qxe2 {[%clk 0:00:06.2]} 27. Nf4 {[%clk 0:01:19.4]}
27... Qxd2 {[%clk 0:00:01.2]} 28. Nxh3 {[%clk 0:01:18.3]} 1-0

[Event "*** Titled Tuesday Blitz"]
[Site "Chess.com"]
[Date "2020.04.07"]
[Round "6"]
[White "tomsishere"]
[Black "Grandmasta23"]
[Result "1-0"]
[WhiteElo "2255"]
[BlackElo "2320"]
[TimeControl "180+1"]
[EndTime "14:07:01 PDT"]
[Termination "tomsishere won on time"]

1. d4 {[%clk 0:03:00.9]} 1... Nf6 {[%clk 0:02:58.8]} 2. c4 {[%clk 0:03:00.6]}
2... g6 {[%clk 0:02:58.3]} 3. Nc3 {[%clk 0:02:58.7]} 3... Bg7 {[%clk 0:02:58]}
4. e4 {[%clk 0:02:58.4]} 4... d6 {[%clk 0:02:58.5]} 5. Nge2 {[%clk 0:02:58.1]}
5... O-O {[%clk 0:02:59]} 6. f3 {[%clk 0:02:58.3]} 6... a6 {[%clk 0:02:58]} 7.
Be3 {[%clk 0:02:54.8]} 7... Nbd7 {[%clk 0:02:58.2]} 8. Qd2 {[%clk 0:02:33.9]}
8... c5 {[%clk 0:02:57.1]} 9. Rd1 {[%clk 0:02:28.3]} 9... cxd4 {[%clk
0:02:52.7]} 10. Nxd4 {[%clk 0:02:29.2]} 10... Ne5 {[%clk 0:02:41.7]} 11. Be2
{[%clk 0:02:25.9]} 11... h5 {[%clk 0:02:39.5]} 12. O-O {[%clk 0:02:23.2]} 12...
Bd7 {[%clk 0:02:36.9]} 13. b3 {[%clk 0:02:14.2]} 13... Rc8 {[%clk 0:02:17]} 14.
Rc1 {[%clk 0:02:11.2]} 14... a5 {[%clk 0:01:55.5]} 15. a4 {[%clk 0:01:57.8]}
15... Ne8 {[%clk 0:01:19.7]} 16. Rfd1 {[%clk 0:01:53]} 16... Nc7 {[%clk
0:01:19.4]} 17. h3 {[%clk 0:01:43.1]} 17... Na6 {[%clk 0:01:03.3]} 18. f4 {[%clk
0:01:39.1]} 18... Nc6 {[%clk 0:01:03.4]} 19. f5 {[%clk 0:01:34.5]} 19... Nc5
{[%clk 0:00:54.6]} 20. Rb1 {[%clk 0:01:14.6]} 20... h4 {[%clk 0:00:17.1]} 21.
fxg6 {[%clk 0:01:09.2]} 21... fxg6 {[%clk 0:00:16.9]} 22. Bf3 {[%clk 0:01:09.7]}
22... Ne5 {[%clk 0:00:16.2]} 23. Bh6 {[%clk 0:01:03.2]} 23... Qe8 {[%clk
0:00:10.3]} 24. Nd5 {[%clk 0:00:55.4]} 24... Rd8 {[%clk 0:00:03.1]} 25. Bxg7
{[%clk 0:00:50.8]} 25... Kxg7 {[%clk 0:00:02.8]} 26. Rf1 {[%clk 0:00:50.1]}
26... Qf7 {[%clk 0:00:02.3]} 27. Be2 {[%clk 0:00:40.6]} 27... Qg8 {[%clk
0:00:02.6]} 28. Nxe7 {[%clk 0:00:36.8]} 1-0